Cogmind - Beta 17 @@@ ROGUE MODE // 2026.07.14 @ 09:18:13 Player: Lexicon Result: Destroyed by G-47 Trooper with Particle Gun Performance ------------- Evolutions (2) 1000 Regions Visited (3) 600 Robots Destroyed (63) 315 Value Destroyed (1539) 1539 Prototype IDs (3) 60 Alien Tech Used (0) 0 Bonus (45) 45 TOTAL SCORE: 3559 Bonus ------- High Alert Combat Kills 45 Cogmind --------- Core Integrity 0/550 Matter 135/300 Energy 100/100 System Corruption 3% Temperature Cool (9) Movement Walking (190) Ox1 Location -8/Materials Parts ------- > --- POWER (1) -------- (None) > --- PROPULSION (4) --- Carbon-fiber Leg > --- UTILITY (4) ------ Large Storage Unit Terrain Scan Processor Advanced Targeting Computer > --- WEAPON (2) ------- Great Maul > --- INVENTORY (15) --- Ion Engine Improved Heat Sink Sensor Array Signal Interpreter Improved Terrain Scanner Seismic Detector Hacking Suite Autogun Shotgun Enhanced Autogun Rocket Launcher Peak State ------------ > --- POWER ------------ Deuterium Engine > --- PROPULSION ------- Aluminum Leg Aluminum Leg Aluminum Leg Aluminum Leg > --- UTILITY ---------- Large Storage Unit Improved Terrain Scanner Terrain Scan Processor Seismic Detector > --- WEAPON ----------- Shotgun Enhanced Autogun > --- INVENTORY -------- Ion Engine Aluminum Leg Improved Aluminum Leg Improved Heat Sink Sensor Array Signal Interpreter Light Armor Plating Hacking Suite Heavy Assault Rifle Heavy Assault Rifle Autogun Grenade Launcher Rocket Launcher Hammer [Rating: 22] Favorites ----------- Power Light Ion Engine Engine Light Ion Engine Propulsion Aluminum Leg Treads Light Treads Leg Aluminum Leg Utility Large Storage Unit Device Seismic Detector Storage Large Storage Unit Processor Terrain Scan Processor Protection Hardened Light Armor Plating Weapon Assault Rifle Energy Gun Particle Gun Ballistic Gun Assault Rifle Launcher Grenade Launcher Impact Weapon Hammer Build | -11 -10 -9 -8 ------- Run | Yrd Mat Mat Mat Slots Evolved 4 | . . 2 2 Power . | . . . . Propulsion 2 | . . 1 1 Utility 2 | . . 1 1 Weapon . | . . . . Parts Attached 49 | 7 3 23 16 Power 6 | 1 1 3 1 Engine 6 | 1 1 3 1 Core . | . . . . Reactor . | . . . . Propulsion 15 | 2 . 9 4 Treads 2 | 2 . . . Leg 13 | . . 9 4 Wheel . | . . . . Hover . | . . . . Flight . | . . . . Utility 12 | 2 2 3 5 Device 4 | 1 . 2 1 Storage 3 | 1 2 . . Processor 2 | . . . 2 Hackware . | . . . . Protection 3 | . . 1 2 Artifact . | . . . . Weapon 16 | 2 . 8 6 Energy Gun 2 | . . 2 . Energy Cannon . | . . . . Ballistic Gun 10 | 2 . 4 4 Ballistic Cannon . | . . . . Launcher 2 | . . 1 1 Special Weapon . | . . . . Impact Weapon 2 | . . 1 1 Slashing Weapon . | . . . . Piercing Weapon . | . . . . Special Melee Weapon . | . . . . Unidentified Prototypes 1 | . . . 1 Parts Lost 16 | . . 7 9 Power 1 | . . . 1 Propulsion 8 | . . 3 5 Utility 2 | . . 1 1 Weapon 5 | . . 3 2 Highest Loss Streak 8 | . . 3 8 To Critical Strikes . | . . . . Average Backups 12 | 2 9 13 13 Power . | . 1 1 1 Propulsion 3 | 1 3 3 2 Utility 4 | . 3 4 5 Weapon 3 | . 2 4 4 Tool/Special . | . . . . Unused Backups 8 | . . 3 5 Power 1 | . . . 1 Propulsion . | . . . . Utility 4 | . . 1 3 Weapon 3 | . . 2 1 Tool/Special . | . . . . Average Slot Usage (%) 95 | . 100 94 93 Engine 10 | . 14 11 8 Treads 8 | . 28 4 . Leg 21 | . . 26 32 Device 15 | . 14 18 9 Storage 11 | . 14 11 9 Processor 3 | . . . 11 Protection 1 | . . . 4 Energy Gun 3 | . . 6 . Ballistic Gun 17 | . 28 14 14 Peak Build Rating 22 | 7 8 15 22 Average Rating 12 | 5 7 12 19 On Entrance 7 | . 7 8 15 Avg Prop Armor Cover (%) 6 | . . 6 . Naked Turns . | . . . . Heaviest Build 49 | 14 49 31 41 Greatest Support 48 | 40 40 40 48 Greatest Overweight (x) 2 | . 1 2 1 Average Overweight (x) . | . . . . Largest Inventory Capacity 20 | 8 20 15 15 Average Capacity 14 | 7 15 15 15 Most Carried 15 | 5 13 15 15 Average Carried 12 | 3 9 13 13 Final Capacity 15 | 8 15 15 15 Final Carried 15 | 5 13 15 11 Class Distribution -------------------- 50% | Mutant 49% | Scavenger-Mutant Dominant Class ---------------- Mutant | -10/Materials Scavenger-Mutant | -9/Materials Scavenger-Mutant | -8/Materials Resources | -11 -10 -9 -8 ----------- Run | Yrd Mat Mat Mat Matter Collected 1348 | 290 142 557 359 Remotely . | . . . . Salvage Created 1843 | 124 284 971 464 Parts 116 | 6 19 73 18 Haulers Intercepted . | . . . . Recyclers Shooed 2 | . 1 1 . Parts Field Recycled . | . . . . Retrieved Matter . | . . . . Parts Self-Destructed . | . . . . Prevented . | . . . . Parts Restored . | . . . . Kills | -11 -10 -9 -8 ------- Run | Yrd Mat Mat Mat Combat Hostiles Destroyed 49 | . 8 28 13 Guns 36 | . 8 20 8 AOE 12 | . . 8 4 Classes Destroyed 10 | 2 3 3 2 Builder 3 | . . 3 . Tunneler 3 | 1 . 2 . Recycler 3 | 1 1 1 . Operator 1 | . . 1 . Watcher 4 | . 1 3 . Swarmer 20 | . 6 14 . Cutter 2 | . . . 2 Grunt 20 | . 2 9 9 Sentry 6 | . . 5 1 Hunter 1 | . . . 1 Best Kill Streak 11 | 2 5 11 6 Combat Bots Only 8 | . 4 8 6 Max Kills in Single Turn 3 | 1 1 3 2 Gunslinging . | . . . . Exploded 3 | . . 3 2 Melee . | . . . . Uniques/NPCs Destroyed . | . . . . Combat | -11 -10 -9 -8 -------- Run | Yrd Mat Mat Mat Hostile Shots Fired 341 | . 48 176 117 Missed 113 | . 18 60 35 Hits 228 | . 30 116 82 Melee 3 | . . . 3 Projectile 225 | . 30 116 79 AOE 1 | . . 1 . Critical Strikes 9 | . 1 2 6 Damage Taken 3460 | . 269 1369 1822 Core 844 | . 43 244 557 Absorbed by Shields . | . . . . Core Remaining (%) 73 | 100 82 39 . Volleys Fired 172 | 5 28 98 41 Largest 2 | 2 2 2 2 Hottest 85 | 40 40 85 46 Shots Fired 327 | 10 56 184 77 Gun 319 | 10 56 179 74 Cannon . | . . . . Launcher 8 | . . 5 3 Special . | . . . . Kinetic 256 | 10 56 116 74 Thermal 63 | . . 63 . Explosive 8 | . . 5 3 Electromagnetic . | . . . . Robot Hit Streak 14 | 3 8 10 14 Robot Miss Streak 6 | 2 5 6 5 Penetration Max . | . . . . Secondary Targets 12 | . 1 9 2 Max Gunslinging Chain 1 | . 1 1 1 Shots Hit Robots 209 | 5 29 102 73 Core Hits 108 | 4 14 54 36 Critical Kills 2 | 1 . . 1 Critical Parts Destroyed 1 | . . . 1 Critical Strikes 6 | 1 . 3 2 Burn 3 | . . 3 . Destroy 2 | 1 . . 1 Smash 1 | . . . 1 Melee Attacks 15 | . . 1 14 Impact 15 | . . 1 14 Slashing . | . . . . Piercing . | . . . . Sneak Attacks . | . . . . Combat Hostiles . | . . . . Follow-up Attacks . | . . . . Damage Inflicted 3920 | 61 337 1907 1615 Guns 2625 | 61 337 1287 940 Cannons . | . . . . Explosions 924 | . . 620 304 Melee 371 | . . . 371 Ramming . | . . . . Kinetic 2050 | 61 337 712 940 Thermal 575 | . . 575 . Explosive 924 | . . 620 304 Electromagnetic . | . . . . Impact 371 | . . . 371 Slashing . | . . . . Piercing . | . . . . Highest Corruption 3 | . . . 3 Average Corruption 2 | . . . 2 Corruption Purged . | . . . . Corruption Blocked . | . . . . Effects 9 | . . . 9 Message Errors 4 | . . . 4 Matter Fused 2 | . . . 2 Heat Flow Errors 1 | . . . 1 Data Loss (minor) 1 | . . . 1 Alerts 1 | . . . 1 Overload Shots . | . . . . Overflow Damage 117 | . . 20 97 Projectiles . | . . . . Explosions 20 | . . 20 . Melee 97 | . . . 97 Knockbacks 2 | . . . 2 Impact 2 | . . . 2 Kinetic . | . . . . Secondary . | . . . . Self-Inflicted Damage 110 | . . 24 86 Shots 3 | . . 1 2 Rammed 1 | . 1 . . Targets Rammed 1 | . 1 . . Kicked . | . . . . Crushed . | . . . . Highest Temperature 312 | . 9 312 213 Average Temperature 70 | . 6 78 34 Received Heat Transfer 861 | . 36 357 468 Effects 2 | . . 2 . Energy Bleed 2 | . . 2 . Siege Activations . | . . . . Martial Activations . | . . . . Shielding Activations . | . . . . Robots Disrupted . | . . . . Combat Hostiles . | . . . . Robots Corrupted 1 | . . . 1 Combat Hostiles 1 | . . . 1 Parts Fried . | . . . . Impact Corruptions 3 | . . . 3 Robots Melted . | . . . . Combat Hostiles . | . . . . Parts Melted 1 | . . 1 . Heat Transferred 1628 | . . 1628 . Parts Sabotaged . | . . . . Parts Stolen . | . . . . Parts Stripped . | . . . . Power Chain Reactions . | . . . . Alert | -11 -10 -9 -8 ------- Run | Yrd Mat Mat Mat Maximum Alert Level 3 | . . 2 3 Low Security (%) 50 | 100 100 19 55 Level 1 35 | . . 55 37 Level 2 13 | . . 25 5 Level 3 . | . . . . Level 4 . | . . . . Level 5 . | . . . . High Security . | . . . . Max Security . | . . . . Peak Influence 743 | 5 122 470 743 Initial 150 | . . 29 150 Average 199 | 1 47 299 189 Influence Increases 1967 | 10 219 809 929 Destroy 0b10 Robot/C 980 | . 160 560 260 Destroy 0b10 Robot/NC 70 | 10 10 50 . Destroy Leader 208 | . 32 116 60 Successful Hack 31 | . 17 14 . Disable Machine 30 | . . 30 . Destroy Structure 48 | . . 24 24 Lose Combat Pursuer 600 | . . 15 585 Influence Decreases 1224 | 10 147 523 544 Entered New Map 251 | . . 43 208 Time Decay 813 | 10 147 410 246 Lost Part 160 | . . 70 90 Squads Dispatched 6 | . . 1 5 Investigation . | . . . . Extermination . | . . . . Reinforcement 6 | . . 1 5 Assault . | . . . . Garrison . | . . . . Intercept . | . . . . Searches Triggered . | . . . . Construction Impeded 1 | . . . 1 Haulers Reinforced . | . . . . Active Scanning Responses . | . . . . Cargo Convoy Interrupts . | . . . . Stealth | -11 -10 -9 -8 --------- Run | Yrd Mat Mat Mat Distress Signals 10 | . . 4 6 Communications Jammed . | . . . . Distress Signals . | . . . . Times Spotted 98 | . 11 38 49 Peak Tracking Total 8 | . 3 4 8 Tactical Retreats 9 | . . 1 8 Traps | -11 -10 -9 -8 ------- Run | Yrd Mat Mat Mat Traps Triggered 2 | . . . 2 Indirectly . | . . . . Trap Hack Attempts . | . . . . Triggered . | . . . . Disarmed . | . . . . Reprogrammed . | . . . . Reused . | . . . . Traps Extracted . | . . . . Installed . | . . . . Triggered . | . . . . Machines | -11 -10 -9 -8 ---------- Run | Yrd Mat Mat Mat Machines Disabled 2 | . . 2 . Max in Single Turn 1 | . . 1 . Machines Repaired . | . . . . Machines Dismantled . | . . . . Machines Sabotaged . | . . . . Overloaded Fab Kills . | . . . . Hacking | -11 -10 -9 -8 --------- Run | Yrd Mat Mat Mat Machines Accessed 5 | . 4 1 . Terminals 5 | . 4 1 . Fabricators . | . . . . Repair Stations . | . . . . Recycling Units . | . . . . Scanalyzers . | . . . . Garrison Access . | . . . . Total Hacks 7 | . 5 2 . Successful 6 | . 5 1 . Failed 1 | . . 1 . Catastrophic . | . . . . Database Lockouts . | . . . . Manual . | . . . . Terminals 7 | . 5 2 . Fabricators . | . . . . Repair Stations . | . . . . Recycling Units . | . . . . Scanalyzers . | . . . . Garrison Access . | . . . . Terminal Hacks 6 | . 5 1 . Prototype ID Bank 1 | . 1 . . Locate Traps 1 | . 1 . . Hauler Manifests 1 | . 1 . . Registered Components 1 | . 1 . . Zone Layout 2 | . 1 1 . Fabricator Hacks . | . . . . Repair Station Hacks . | . . . . Recycling Unit Hacks . | . . . . Scanalyzer . | . . . . Garrison Access Hacks . | . . . . Unauthorized Hacks . | . . . . Terminals . | . . . . Fabricators . | . . . . Repair Stations . | . . . . Recycling Units . | . . . . Scanalyzers . | . . . . Garrison Access . | . . . . Data Cores Recovered . | . . . . Used . | . . . . Hacking Detections 1 | . . 1 . Full Trace Events . | . . . . Feedback Events . | . . . . Feedback Blocked . | . . . . Robot Schematics Acquired . | . . . . Robots Built . | . . . . Authchips . | . . . . Time . | . . . . Total Robot Build Rating . | . . . . Part Schematics Acquired . | . . . . Parts Built . | . . . . Authchips . | . . . . Time . | . . . . Total Part Build Rating . | . . . . Part Studies Acquired . | . . . . Parts Repaired . | . . . . Time . | . . . . Parts Recycled . | . . . . Recycled Matter . | . . . . Retrieved Matter . | . . . . Retrieved Components . | . . . . Parts Scanalyzed . | . . . . Part Schematics Acquired . | . . . . Parts Damaged . | . . . . Bothacking | -11 -10 -9 -8 ------------ Run | Yrd Mat Mat Mat Used RIF Installer . | . . . . Robots Hacked . | . . . . Non-combat . | . . . . Combat . | . . . . Robot Hacks Applied . | . . . . Relay Couplers Released . | . . . . Fabnet Peak Effective % . | . . . . Robots Rewired . | . . . . Allies Hacked . | . . . . Hacks Repelled . | . . . . Allies | -11 -10 -9 -8 -------- Run | Yrd Mat Mat Mat Total Allies . | . . . . Largest Group . | . . . . Highest-Rated Group . | . . . . Highest-Rated Ally . | . . . . Total Orders . | . . . . Ally Attacks . | . . . . Total Damage . | . . . . Kills . | . . . . Allies Corrupted . | . . . . Allies Melted . | . . . . Intel | -11 -10 -9 -8 ------- Run | Yrd Mat Mat Mat Active Infowar (turns) 1859 | 20 492 990 357 Terrain 356 | . . . 356 Seismic 1690 | 20 492 990 188 Robot Analysis Total . | . . . . Derelict Logs Recovered . | . . . . Drone Launches . | . . . . Drone Recoveries . | . . . . Exploration | -11 -10 -9 -8 ------------- Run | Yrd Mat Mat Mat Turns Passed 2101 | 96 492 990 523 Spaces Moved 961 | 43 238 454 226 Core 1 | 1 . . . Treads 312 | 42 238 32 . Legs 648 | . . 422 226 Wheels . | . . . . Hover . | . . . . Flight . | . . . . Fastest Speed 50 | 50 160 120 120 Average Speed 146 | 157 168 141 130 Slowest Speed 260 | 160 240 260 190 Overloaded Moves . | . . . . Propulsion Burnouts . | . . . . Robots Hopped . | . . . . Potential Cave-ins . | . . . . Cave-ins Triggered . | . . . . Exploration Rate (%) 29 | 5 50 43 20 Regions Visited 3 Branch Regions . Pre-discovered Areas . | . . . . Known Exits Taken . | . . . . Unknown Exits Taken 3 | 1 1 1 . Scrap Searched . | . . . . Spaces Dug . | . . . . Terrain Destroyed 48 | . . 25 23 Melee . | . . . . Projectile . | . . . . AOE 48 | . . 25 23 Terrain Rammed . | . . . . Walls Destroyed . | . . . . Machines Disabled . | . . . . Actions | -11 -10 -9 -8 --------- Run | Yrd Mat Mat Mat Total 1309 | 59 279 624 347 Wait 43 | . . 14 29 Move 958 | 42 237 453 226 Hop . | . . . . Pick Up 32 | 5 8 14 5 Fast Attach 17 | 7 . 4 6 Attach 15 | . . 7 8 Detach 2 | . . . 2 Swap 29 | . 3 19 7 Drop 25 | . 2 14 9 Fire 172 | 5 28 98 41 Melee 15 | . . 1 14 Ram . | . . . . Kick . | . . . . Crush 1 | . 1 . . Escape Stasis . | . . . . Rewire . | . . . . Trap . | . . . . Miscellaneous . | . . . . Route ------- -11/Scrapyard -10/Materials (discovered 2 exits: *Mat / [*Sub]) -9/Materials (discovered 2 exits: [*Mat] / [*Min]) -8/Materials History --------- Turn | Location | Event 17 | -11/Scrapyard | Discovered new exit (range 16) 97 | -11/Scrapyard | Entered Materials 221 | -10/Materials | Discovered new exit (range 10) 304 | -10/Materials | Build established: Mutant 551 | -10/Materials | Discovered new exit (range 16) 589 | -10/Materials | Entered another Materials area 589 | -9/Materials | Evolved 2 slots: Propulsion x1, Utility x1 735 | -9/Materials | Destroyed 8 combat bots 1051 | -9/Materials | Lost 3 parts (2n1w) 1063 | -9/Materials | Build established: Scavenger-Mutant 1081 | -9/Materials | Discovered new exit (range 8) 1244 | -9/Materials | Discovered new exit (range 4) 1334 | -9/Materials | Core integrity fell below 50% 1579 | -9/Materials | Entered another Materials area 1579 | -8/Materials | Evolved 2 slots: Propulsion x1, Utility x1 2070 | -8/Materials | Core integrity fell below 50% 2084 | -8/Materials | Core integrity fell below 20% 2102 | -8/Materials | Lost 8 parts (1p5n2w) 2102 | -8/Materials | Destroyed by G-47 Trooper with Particle Gun Last Messages --------------- 02073_ Critical hit (Burn: +37). 02074_ U-05 Engineer lays Concrete. 02075_ Knocked back. 02077_ U-05 Engineer builds a Wall. 02079_ U-05 Engineer lays Concrete. 02083_ Knocked back. 02085_ U-05 Engineer lays Concrete. 02086_ G-47 Trooper suffers critical hit (Smash). 02086_ Destroyed Lgt. Nuclear Core. 02086_ G-47 Trooper system corrupted by crushing effect. 02086_ G-47 Trooper knocked back. 02087_ U-05 Engineer builds a Wall. 02089_ Destroyed Aluminum Leg. 02089_ G-47 Trooper system corrupted by crushing effect. 02090_ G-47 Trooper system terminally corrupted. 02091_ Acquired 36 matter. 02091_ U-05 Engineer lays Concrete. Map ----- +----------------------------------------------------+ | ?????????????????????????????????????????????????? | | ?????????????????????????????????????????????????? | | ?????????????????????????????????????????????????? | | ?????????????????????????????????????????????????? | | ?????????????????????????????????????????????????? | | ?????????????????????????????????????????????????? | | ?????????????????????????????????????????????????? | | ??????????????????????? ?????????????????????????? | | ?????????????????????????????????????????????????? | | ?????????????????????????????????????????????????? | | ??????????????????#??????????? ??????????????????? | | ??????????????????????? ??"?#????????????????????? | | ?????????????????????? ??"???##??????????????????? | | ???????????????? ????????"????? ????????????????? | | ???????????????? ????????????????????????????????? | | ??????????????? ? ###########????? ??????????????? | | ??????????? ??????# # ???????????????????? | | ????????????? ????# /* #????????????????????? | | ??????????? ??#?? # [ * #? ??????????????????? | | ??????????#?????? # =* #?##???#?????????????? | | ?????????????#? ??# """ #? ##????????????????? | | ??????????"???? ? # """ ## #????"?"??????????? | | ????????"""???????# %""" #? #??"?""???????????? | | ?????????"????? ? # | ## ##?"""""??????????? | | ????????? ??? ????#####+# ####+;# %"""???????????? | | ????????? ?????? ??#?#=%u@%g% # """"???????????? | | ???????? ? ??#? ??#?# u# = # """"???????????? | | ???????? ? ?? #????#?# / H # """"???????????? | | ???????#?#???##???#?## # = # !#???????? | | ????????#??#### ? #### %#!!! #########????????? | | ??????????#??## ## # %#!!! ##?#?????????????? | | ????????#??#### ?### =#!! #????????????????? | | ???????????## ## # *###?##???????????? | | ??????????? ## [########?##?????????????? | | ???????? ? ## !%# ##?###########????????? | | ?????????? # = ## ? ???????? | | ???????? ? # ## ???????? | | ??????????? # ???????? | | ?????????# ## # ####/#####????#????????? | | ????????##+#####+#### # ? ?#? ??????????? | | ??? ????# ? ? ### ### """? ? ?????????????? | | ??????# ??"" ### ### """ ? ? ? ???????????? | | ???????##?? "T" #?# ###?""" ?? ???????????? | | ??#????## "?" ?? ?## ### ?? ? # ? ?????????? | | ##???#?#? """ ? ### ##? ? ?? ?? ??????????? | | ????????? """? ? ### ###?"R" ? ####?????????? | | ???##???# ? ### ## """ ? ?###??????????? | | ?#?##??#?##??##########/####?######???#??????????? | | ?#????#####?###?#### ![[**#########?#?#??????????? | | ?#?#?#############?# [[* ##########?????????????? | +----------------------------------------------------+ Best States ------------- Heat Dissipation 45 Energy Generation 14 Energy Capacity 275 Matter Stores 300 Matter Capacity 300 Sight Range 16 Terrain Scan Range 16 Terrain Scan Density 85 Armor Coverage 150 Evasion (%) 55 Targeting Accuracy 8 Recoil Reduction 2 Item Schematics ----------------- None Robot Schematics ------------------ None Fabricated ------------ Nothing Repaired ---------- Nothing Studied --------- None Alien Tech Used ----------------- None Achievements -------------- None Challenges ------------ None Game ------ Seed SapperPointStorm Manual? 0 Play Time 00:28:26 Cumulative 23.7 hours Start 2026.07.14 @ 08:49:33 End 2026.07.14 @ 09:18:13 Sessions 1 Manual Loads 0 Difficulty Rogue Special Mode None Game No. 11 Rogue 11 Adventurer 0 Explorer 0 Win Type - Total 1 Types 1/0/0/0/0/0/0/0/0/0 Lore% 34 Gallery% 26 Achievement% 29 Wizard Run 0 Options --------- Layout 1 ASCII 0 Keyboard 0 Movement Mouse Keybinds 0 Fullscreen 1 Font 24/Smallcaps Map View 50x35 Zoom Use 0% Tactical HUD 1 Map Filters NONE Filters NONE Steam 0 RUN: dd4e3865-496f-499b-b22a-2e2d98cabd36